bitfinex/quotes_ETHUSD_20240828
["timestamp","ask_amount","ask_price","bid_price","bid_amount"]
[1724832259911,4.09973,2439.2,2438.8,0.55]
[1724832260110,4.0999,2439.1,2438.8,0.55]
[1724832260400,9.0541,2438.9,2438.4,0.4104]
[1724832260921,9.0541,2438.9,2438.2,0.4104]
[1724832260922,0.03835191,2438.8,2438.2,0.4104]
[1724832261270,0.03835191,2438.8,2438.3,0.0820036]
[1724832261467,0.03835191,2438.8,2438.4,0.4104]
[1724832261775,0.03835191,2438.8,2438.7,4.10054]
[1724832261975,9.0046,2439.4,2438.8,4.10025]
[1724832262203,9.0046,2439.4,2438.7,8.14292724]
[1724832262204,0.03766558,2439.3,2438.9,8.14247696]
[1724832262376,0.03766558,2439.3,2439.0,4.09993]
[1724832262567,9.2142,2439.8,2439.1,3.63197979]
[1724832262767,0.03639891,2439.7,2439.1,0.08197979]
[1724832262984,0.03639891,2439.7,2439.2,0.55]
[1724832263179,1.3713228,2439.7,2439.3,0.0819786]
[1724832263630,1.3713228,2439.7,2439.4,0.55]
[1724832264286,4.0992,2439.5,2439.4,0.55]
[1724832264487,4.0992,2439.5,2438.9,0.4104]
[1724832264700,4.0992,2439.5,2439.0,0.55]
[1724832264903,4.54576891,2439.4,2439.0,0.55]
[1724832265087,4.54576891,2439.4,2438.9,0.55]
[1724832265290,4.09954,2439.3,2438.9,0.55]
[1724832265494,4.09954,2439.3,2438.7,0.55]
[1724832265710,0.45458589,2439.2,2438.7,0.55]
[1724832265921,0.03639891,2439.2,2438.7,0.55]
[1724832266083,0.03639891,2439.2,2438.8,0.08198843]
[1724832266296,0.03639891,2439.2,2438.7,0.55]
[1724832266297,13.70966,2439.1,2438.3,0.4104]
[1724832266480,13.74605891,2439.1,2438.3,0.4104]
[1724832266675,9.64609891,2439.1,2438.3,0.4104]
[1724832266915,4.1003,2438.9,2438.3,0.4104]
[1724832267117,9.64609891,2439.1,2438.3,0.4104]
[1724832267362,9.6097,2439.1,2438.5,4.10078]
[1724832267522,0.03639891,2439.0,2438.6,0.0819961]
[1724832267683,0.03639891,2439.0,2438.7,0.55]
[1724832268004,0.03639891,2439.0,2438.9,8.2004]
[1724832268319,0.03639891,2439.0,2438.9,11.7504]
[1724832268320,0.00222331,2439.0,2438.9,11.7504]
[1724832268525,4.09826,2440.1,2439.0,4.10001]
[1724832268526,9.3273,2440.0,2439.0,4.10001]
[1724832268705,1.342556,2439.9,2439.3,4.09952]
[1724832268902,1.342556,2439.9,2439.4,3.08197079]
[1724832269218,1.342556,2439.9,2439.4,3.63197079]
[1724832269398,9.3273,2440.0,2439.6,4.09902]
[1724832269608,9.3273,2440.0,2439.4,3.63197079]
[1724832269609,9.3273,2440.0,2439.7,3.55]
[1724832269978,9.3273,2440.0,2439.7,0.55]
[1724832270215,4.09869,2439.8,2439.3,0.4104]
[1724832270401,4.09918,2439.6,2438.5,0.4104]
[1724832270610,4.09918,2439.6,2438.7,0.4104]
[1724832270611,9.6783,2439.5,2438.7,0.4104]
[1724832270924,13.77715,2439.8,2438.4,4.10097]
[1724832271162,9.6783,2439.8,2439.2,4.09958]
[1724832271314,4.09809,2440.2,2439.4,4.09923]
[1724832271315,9.2085,2440.2,2439.4,4.09923]
[1724832271647,9.2085,2440.2,2439.5,4.18103829]
[1724832271835,9.2085,2440.2,2439.6,7.64902]
[1724832272056,9.2085,2440.2,2439.8,4.09857]
[1724832272393,4.09548,2441.8,2439.9,0.63195511]
[1724832272394,13.28644,2441.8,2439.9,0.63195511]
[1724832272509,13.28634,2441.8,2440.8,4.09686]
[1724832272720,13.28634,2441.8,2441.0,4.09667]
[1724832272721,1.328644,2441.7,2441.0,4.09667]
[1724832272916,9.191,2441.8,2441.1,3.08191065]
[1724832273149,9.191,2441.8,2441.1,3.63191065]
[1724832273559,4.09553,2441.7,2441.1,0.55]
[1724832273716,9.191,2441.8,2441.2,0.08191709]
[1724832273912,0.03807629,2441.6,2441.3,0.55]
[1724832274148,0.04185904,2441.5,2441.3,0.55]
[1724832274354,1.0519649,2441.6,2441.4,0.08191112]
[1724832274648,1.0519649,2441.6,2441.0,4.09667]
[1724832274649,1.0519649,2441.6,2441.5,0.55]
[1724832274852,1.0519649,2441.6,2441.5,0.5]
[1724832275059,1.0519649,2441.6,2441.2,0.08191719]
[1724832275222,9.191,2441.8,2441.2,0.08191719]
[1724832275421,9.191,2441.8,2441.2,4.17822719]
[1724832275662,9.191,2441.8,2441.3,3.0819088]
[1724832275953,0.04269074,2441.7,2441.3,3.0]
[1724832276158,9.0161,2442.2,2441.4,0.08190105]
[1724832276651,4.1375507,2442.1,2441.4,0.08190105]
[1724832276863,0.0425807,2442.1,2441.4,0.08190105]
[1724832277151,1.35790277,2442.1,2441.5,0.55]
[1724832277323,1.35790277,2442.1,2441.5,3.55]
[1724832277802,1.35790277,2442.1,2441.6,4.09566]
[1724832277949,1.35790277,2442.1,2441.7,0.55]
[1724832278467,0.0425807,2442.1,2441.7,4.64548]
[1724832278681,0.0425807,2442.1,2441.8,3.08189163]
[1724832278992,0.0425807,2442.1,2441.9,0.55]
[1724832279195,0.0425807,2442.1,2442.0,0.08189163]
[1724832279385,9.1863,2442.6,2442.0,7.72689163]
[1724832279580,0.04236873,2442.5,2442.0,7.17689163]
[1724832279763,0.04236873,2442.5,2442.1,0.55]
[1724832279966,0.04236873,2442.5,2442.2,0.08187993]
[1724832280258,0.04236873,2442.5,2442.3,0.55]
[1724832280478,0.04236873,2442.5,2442.4,0.08187623]
[1724832280694,0.04236873,2442.5,2442.4,3.63187623]
[1724832280855,9.3312,2443.0,2442.4,7.72606623]
[1724832281057,9.3312,2443.0,2442.5,0.55]
[1724832281058,10.26432,2443.0,2442.5,0.55]
[1724832281493,4.13652647,2442.9,2442.5,0.55]
[1724832281676,4.13652647,2442.9,2442.3,0.55]
[1724832281677,0.04290647,2442.9,2442.3,0.55]
[1724832282088,4.13643647,2442.9,2442.3,3.55]
[1724832282257,0.04290647,2442.9,2442.3,0.55]
[1724832282596,0.04290647,2442.9,2442.3,4.0945]
[1724832282797,0.04290647,2442.9,2442.4,3.55]
[1724832283392,0.04290647,2442.9,2442.5,0.08186496]
[1724832283691,0.02290647,2442.9,2442.6,0.55]
[1724832283896,0.04304619,2442.9,2442.6,3.55]
[1724832284054,0.04304619,2442.9,2442.6,3.0]
[1724832285089,0.04304619,2442.9,2442.7,0.08186338]
[1724832285290,0.04304619,2442.9,2442.7,4.17564338]
[1724832285497,0.04304619,2442.9,2442.8,3.0]
[1724832285697,9.801,2443.5,2442.8,3.0818528]
[1724832285897,9.801,2443.5,2443.0,4.09326]
[1724832285898,10.7811,2443.5,2443.0,4.09326]
[1724832286057,9.801,2443.5,2443.1,7.17497678]
[1724832286256,9.0656,2444.1,2443.2,0.55]
[1724832286479,13.15718,2444.1,2443.2,4.64288]
[1724832286655,13.15718,2444.1,2443.2,8.73576]
[1724832286867,9.0656,2444.1,2443.5,4.09248]
[1724832287105,9.0656,2444.1,2443.6,3.63182991]
[1724832287390,9.0656,2444.1,2443.8,4.09188]
[1724832287577,9.0656,2444.1,2443.6,4.64221]
[1724832287578,9.0656,2444.1,2443.9,3.63182204]
[1724832287754,9.0656,2444.1,2443.9,3.08182204]
[1724832287959,9.4066,2444.5,2444.0,3.55]
[1724832288303,4.17287503,2444.4,2444.0,0.55]
[1724832288463,4.09101,2444.4,2444.0,0.55]
[1724832288803,4.09109,2444.4,2444.0,0.55]
[1724832289004,5.4818571,2444.3,2444.0,0.55]
[1724832289293,1.3906771,2444.3,2444.0,0.55]
[1724832289499,9.815681,2444.5,2444.0,0.55]
[1724832289704,13.906591,2444.5,2443.8,3.55]
[1724832290040,4.09116,2444.3,2443.8,3.55]
[1724832290298,1.7997901,2444.3,2443.9,0.08182297]
[1724832290486,9.815681,2444.5,2444.0,0.55]
[1724832290688,0.08186503,2444.4,2444.0,0.55]
[1724832290998,4.09133,2444.2,2444.0,0.55]
[1724832291184,9.815681,2444.5,2444.0,0.55]
[1724832291185,0.04413841,2444.1,2444.0,0.55]
[1724832291398,8.18246,2444.3,2444.0,0.55]
[1724832291581,0.04413841,2444.2,2444.0,0.55]
[1724832291907,9.9427,2443.4,2442.2,4.09466]
[1724832292058,11.346227,2443.4,2443.0,4.09332]
[1724832292394,0.04427271,2444.1,2443.2,4.09296]
[1724832292395,0.04427271,2443.3,2443.2,4.09296]
[1724832292605,9.3453,2444.2,2443.5,4.09248]
[1724832292762,9.3453,2444.2,2443.9,4.0918]
[1724832293103,9.3453,2444.2,2444.0,0.08182128]
[1724832293288,9.3932,2444.6,2444.0,4.09148]
[1724832293593,9.3932,2444.6,2444.1,3.55]
[1724832293594,13.484,2444.6,2444.1,3.55]
[1724832293822,9.3932,2444.6,2444.1,0.55]
[1724832294113,9.3932,2444.6,2444.0,0.55]
[1724832294318,0.08186503,2444.5,2444.0,0.55]
[1724832294670,4.09163,2444.1,2443.9,0.55]
[1724832294874,9.4499,2443.7,2442.9,4.09339]
[1724832295300,9.4499,2443.7,2443.1,4.09306]
[1724832295685,9.4499,2443.7,2443.0,0.4102]
[1724832295686,14.896258,2443.7,2443.0,0.4102]
[1724832296212,10.804078,2443.7,2443.0,4.50341]
[1724832296608,1.0804078,2443.6,2443.0,4.50341]
[1724832296909,10.804078,2443.7,2443.0,0.4102]
[1724832296910,9.4499,2443.7,2443.0,0.4102]
[1724832297225,9.4499,2443.7,2443.2,4.09288]
[1724832297549,9.4499,2443.7,2443.3,3.55]
[1724832297823,9.6943,2443.5,2441.5,4.09578]
[1724832298135,9.6943,2443.5,2442.8,4.09355]
[1724832298278,9.6943,2443.5,2443.0,4.09329]
[1724832298590,9.6943,2443.5,2443.1,4.09304]
[1724832298915,9.6943,2443.5,2443.0,4.0932]
[1724832299128,9.6943,2443.5,2443.1,0.08184715]
[1724832299282,9.6943,2443.5,2443.3,4.0928]
[1724832299611,4.09124,2444.3,2443.4,3.55]
[1724832299612,9.4755,2444.0,2443.4,3.55]
[1724832299813,9.4755,2444.0,2443.7,4.09213]
[1724832300019,9.4755,2444.0,2443.8,3.63182893]
[1724832300333,0.04126237,2443.9,2443.8,3.55]
[1724832300626,0.04126237,2443.9,2442.9,0.4102]
[1724832300627,9.4755,2443.5,2442.9,0.4102]
[1724832300778,9.4755,2443.5,2443.1,4.09305]
[1724832300977,0.04160447,2443.4,2443.3,4.09271]
[1724832301214,9.4755,2443.9,2443.4,4.09262]
[1724832301434,9.4755,2443.9,2443.5,0.08183639]
[1724832301645,9.4755,2443.9,2443.6,4.09222]
[1724832301794,9.4755,2444.4,2444.0,4.09155]
[1724832302137,9.4755,2444.4,2443.6,0.41740564]
[1724832302138,13.56651,2444.4,2444.1,3.55]
[1724832302433,9.4755,2444.4,2444.2,3.0]
[1724832302617,9.4755,2444.4,2444.3,0.55]
[1724832303317,10.42305,2444.4,2444.3,0.55]
[1724832303518,10.85130803,2444.4,2444.3,0.55]
[1724832304233,10.85130803,2444.4,2443.9,3.0]
[1724832304545,4.09165,2444.1,2444.0,0.55]
[1724832304747,9.5781,2444.0,2443.0,0.64070854]
[1724832304895,1.0851308,2444.3,2443.0,4.0932]
[1724832304896,4.09207,2443.8,2443.0,4.0932]
[1724832305097,0.08186503,2443.7,2443.0,4.0932]
[1724832305313,4.09232,2443.6,2443.1,0.0818514]
[1724832305595,4.09207,2443.8,2443.1,0.0818514]
[1724832305935,9.8744,2443.9,2443.5,4.09246]
[1724832306142,9.8803,2444.3,2443.7,4.09214]
[1724832306433,13.97159,2444.3,2443.8,3.08182223]
[1724832306615,1.0308558,2444.2,2443.8,0.08182223]
[1724832306823,1.0308558,2444.2,2443.9,0.55]
[1724832307024,9.8803,2444.3,2444.0,0.08182835]
[1724832307189,0.42825803,2444.4,2444.1,0.55]
[1724832307394,0.42825803,2444.4,2444.3,4.09115]
[1724832307693,0.42825803,2444.4,2444.3,8.81410542]
[1724832307901,0.42825803,2444.4,2444.3,7.72295542]
[1724832308102,0.42825803,2444.4,2444.3,11.81410542]
[1724832308413,9.0187,2445.4,2444.7,4.09041]
[1724832308625,0.03791661,2445.3,2444.8,3.0]
[1724832308866,9.6955,2444.9,2444.4,0.64052114]
[1724832309026,9.6955,2444.9,2444.5,0.55]
[1724832309360,1.41650404,2444.8,2444.5,0.55]
[1724832309569,1.41650404,2444.8,2444.1,3.0]
[1724832309570,0.03794104,2444.8,2444.6,4.1724258]
[1724832309725,0.03794104,2444.8,2444.7,3.55]
[1724832309929,4.09075,2444.6,2444.4,3.0]
[1724832310123,4.09076,2444.6,2443.9,3.64058971]
[1724832310360,10.0562636,2444.5,2443.8,7.09189]
[1724832310566,10.0562636,2444.5,2443.9,0.08182433]
[1724832310869,10.0562636,2444.5,2443.7,0.4102]
[1724832310870,10.0562636,2444.5,2444.0,4.17346437]
[1724832311076,0.0380876,2444.5,2444.1,7.09145]
[1724832311278,4.09127,2444.3,2443.8,0.64067005]
[1724832311423,0.08186503,2444.7,2443.7,3.0]
[1724832311424,9.0192,2444.2,2443.7,3.0]
[1724832311624,9.0192,2444.2,2444.0,4.09154]
[1724832311625,0.0378189,2444.1,2444.0,4.09154]
[1724832311864,4.08896,2445.7,2444.2,4.09125]
[1724832311865,9.0192,2444.6,2444.2,4.09125]
[1724832312169,0.90192,2444.5,2444.3,0.6318124]
[1724832312351,0.03767232,2444.5,2444.3,3.6318124]
[1724832312526,0.03767232,2444.5,2444.4,4.09098]
[1724832312527,0.00230694,2444.5,2444.4,4.09098]
[1724832312727,9.0192,2444.6,2444.4,7.72278626]
[1724832312929,0.03649347,2444.5,2444.4,7.17278626]
[1724832313163,0.03649347,2444.5,2444.4,3.63180626]
[1724832313465,5.03287282,2444.5,2444.4,3.55]
[1724832313690,0.94206282,2444.5,2444.0,0.64068719]
[1724832313966,0.94206282,2444.5,2444.1,0.08182191]
[1724832314265,0.99612628,2444.4,2443.8,0.4102]
[1724832314432,0.99612628,2444.4,2443.9,4.17355505]
[1724832314777,0.99612628,2444.4,2443.9,4.58375505]
[1724832314778,0.03668891,2444.3,2443.9,4.58375505]
[1724832314926,0.03668891,2444.3,2443.9,4.58369505]
[1724832315132,0.03668891,2444.3,2444.2,4.09131]
[1724832315331,0.03668891,2444.3,2444.2,11.18262]
[1724832315636,9.604,2445.1,2444.7,4.09034]
[1724832315966,9.604,2445.1,2444.8,3.63179555]
[1724832316123,0.08186503,2445.0,2444.8,3.55]
[1724832316350,4.09013,2445.0,2444.5,3.0]
[1724832316666,1.78282211,2445.0,2444.6,0.55]
[1724832316880,1.78282211,2445.0,2444.5,7.64079]
[1724832317179,9.604,2445.1,2444.8,4.09016]
[1724832317347,9.6639,2445.4,2444.9,3.55]
[1724832317543,0.08186503,2445.3,2444.9,3.55]
[1724832317748,0.08186503,2445.3,2444.9,0.55]
[1724832317944,0.08186503,2445.3,2444.8,0.55]
[1724832318273,1.01739369,2445.3,2444.8,0.08180155]
[1724832318476,4.08965,2445.2,2444.7,3.08179653]
[1724832318641,4.08981,2445.1,2444.5,3.0]
[1724832319084,1.47707237,2445.2,2444.6,0.08179835]
[1724832319285,9.6639,2445.4,2444.7,4.09044]
[1724832319493,9.6639,2445.4,2444.9,4.08998]
[1724832319790,9.6639,2445.4,2445.0,8.72969]
[1724832320113,9.6639,2445.4,2445.1,3.0]
[1724832320285,1.00920718,2445.3,2445.1,3.0]
[1724832320593,9.6639,2445.4,2445.2,4.63962]
[1724832320947,4.316,2447.2,2445.3,3.08178424]
[1724832320948,9.0945,2446.1,2445.3,3.08178424]
[1724832321283,9.0945,2446.1,2445.8,4.08862]
[1724832321493,4.0883,2446.0,2445.9,3.55]
[1724832321704,0.08186503,2446.0,2445.5,0.4102]
[1724832321860,1.40014503,2446.0,2445.6,0.55]
[1724832322190,1.31828,2446.0,2445.6,0.55]
[1724832322490,4.08864,2445.8,2445.6,0.55]
[1724832322694,10.02552903,2445.7,2445.6,0.55]
[1724832322879,9.943664,2445.7,2444.8,0.72216153]
[1724832323084,9.5348,2445.7,2445.3,4.08935]
[1724832323265,9.5348,2445.7,2445.4,3.55]
[1724832323894,9.5348,2445.7,2445.4,3.63177544]
[1724832324394,9.5348,2445.7,2445.4,3.55]
[1724832324557,9.5348,2445.7,2445.4,0.55]
[1724832324558,5.04256,2445.6,2445.4,0.55]
[1724832324753,9.5348,2445.7,2445.3,0.08178267]
[1724832324979,0.03703596,2445.5,2445.3,3.0]
[1724832325188,0.03873373,2445.4,2445.3,7.08946]
[1724832325394,0.03873373,2445.4,2445.3,11.58913]
[1724832325694,0.0374426,2445.4,2445.3,11.58899]
[1724832325904,0.0374426,2445.4,2445.3,3.0]
[1724832326057,9.1011,2445.9,2445.3,4.08947]
[1724832326257,0.0378332,2445.8,2445.4,3.0]
[1724832327185,0.0378332,2445.8,2445.3,4.08936]
[1724832327381,0.0378332,2445.8,2445.4,3.0]
[1724832327581,0.0378332,2445.8,2445.5,4.17089613]
[1724832327801,0.0378332,2445.8,2445.7,4.0888]
[1724832328094,9.8592,2446.2,2445.7,4.17056545]
[1724832328260,9.8592,2446.2,2445.8,4.72038019]
[1724832328462,9.8592,2446.2,2445.9,3.0]
[1724832328659,9.8592,2446.2,2446.0,0.55]
[1724832328969,13.94725,2446.2,2446.0,0.55]
[1724832329297,9.8592,2446.2,2445.8,4.72027487]
[1724832329510,9.8592,2446.2,2445.9,3.0]
[1724832329663,9.8592,2446.2,2446.0,0.55]
[1724832330025,9.1504,2446.6,2446.1,4.08814]
[1724832330297,0.42795039,2446.3,2446.2,0.55]
[1724832330457,0.42795039,2446.3,2446.2,3.55]
[1724832330659,0.42795039,2446.3,2446.2,7.63797]
[1724832331077,9.1504,2446.6,2446.2,7.63797]
[1724832331896,13.23773,2446.6,2446.2,3.55]
[1724832332204,4.08747,2446.5,2446.2,0.55]
[1724832332359,4.08773,2446.4,2446.2,0.55]
[1724832332560,4.08773,2446.4,2446.1,0.55]
[1724832332875,4.08773,2446.4,2446.0,0.55]
[1724832333259,0.08186503,2446.5,2446.0,0.55]
[1724832333465,9.1504,2446.6,2446.0,4.63822]
[1724832333659,4.08747,2446.5,2446.1,3.0]
[1724832333890,13.2377,2446.6,2446.2,0.55]
[1724832334091,9.1504,2446.6,2446.2,0.55]
[1724832334416,9.3314,2446.9,2446.5,4.08739]
[1724832334705,9.3314,2446.9,2446.6,3.55]
[1724832335059,9.3314,2446.9,2446.6,1.55]
[1724832335256,9.3314,2446.9,2446.6,0.55]
[1724832336286,9.3314,2446.9,2446.8,4.08697]
[1724832336471,0.4279001,2447.0,2446.8,0.55]
[1724832336674,0.4279001,2447.0,2446.9,0.55]
[1724832337196,0.4279001,2447.0,2446.8,0.55]
[1724832337503,0.4279001,2447.0,2446.8,4.63694]
[1724832337696,0.4279001,2447.0,2446.9,3.0]
[1724832337896,0.4279001,2447.0,2446.9,3.55]
[1724832338276,0.4279001,2447.0,2446.9,4.6368]
[1724832338605,9.7551,2447.3,2446.9,3.63172775]
[1724832338760,9.7551,2447.3,2447.0,3.55]
[1724832339205,9.7551,2447.3,2447.0,0.55]
[1724832339788,9.7551,2447.3,2447.1,4.08646]
[1724832340119,9.7551,2447.3,2447.2,3.55]
[1724832340999,9.7551,2447.3,2447.2,0.55]
[1724832341172,9.7551,2447.3,2447.1,0.55]
[1724832341380,9.5283725,2447.6,2447.2,4.0863]
[1724832341600,9.5283725,2447.6,2447.3,0.55]
[1724832342664,9.5283725,2447.6,2447.2,7.71798549]
[1724832343401,9.5283725,2447.6,2447.3,4.0861]
[1724832343604,9.5283725,2447.6,2447.4,3.55]
[1724832343905,9.1005,2447.6,2447.4,3.55]
[1724832344511,9.1005,2447.6,2446.9,4.49689]
[1724832344512,0.08186503,2447.5,2447.2,3.0]
[1724832344674,0.08186503,2447.5,2446.9,0.4102]
[1724832344883,13.18624,2447.6,2447.0,4.42754]
[1724832345064,13.18624,2447.6,2446.9,0.4919248]
[1724832345065,9.1005,2447.6,2447.1,3.08171801]
[1724832345268,9.1005,2447.6,2447.4,4.08593]
[1724832345463,9.1005,2447.6,2447.3,8.17201]
[1724832345709,9.1005,2447.6,2447.4,3.0]
[1724832345918,9.1005,2447.6,2447.5,4.0858]
[1724832346194,0.42780751,2448.0,2447.6,4.0856]
[1724832346439,0.42780751,2448.0,2447.7,7.71705937]
[1724832347296,0.42780751,2448.0,2447.8,0.08169945]
[1724832347492,0.42780751,2448.0,2447.9,0.55]
[1724832347935,8.59772751,2448.0,2447.9,0.55]
[1724832348233,0.42780751,2448.0,2447.7,0.55]
[1724832349611,0.42780751,2448.0,2447.8,0.08170523]
[1724832349810,0.42780751,2448.0,2447.9,0.55]
[1724832350160,0.42780751,2448.0,2447.9,4.63513]
[1724832350337,0.42780751,2448.0,2447.9,3.55]
[1724832351041,0.42780751,2448.0,2447.9,7.63513]
[1724832351602,0.42780751,2448.0,2447.9,3.55]
[1724832352040,0.42780751,2448.0,2447.9,0.55]
[1724832353321,9.8414,2448.2,2447.9,0.55]
[1724832354617,9.8414,2448.2,2448.0,4.0848]
[1724832354953,9.8414,2448.2,2448.1,7.6348]
[1724832355251,0.42772277,2448.6,2448.4,4.08414]
[1724832355411,0.42772277,2448.6,2448.5,3.55]
[1724832355614,4.51168277,2448.6,2448.5,0.55]
[1724832355911,13.67059,2448.4,2448.3,0.55]
[1724832356208,9.5863,2448.4,2448.3,0.55]
[1724832356440,13.67059,2448.4,2448.3,0.55]
[1724832356749,8.16892,2448.3,2447.9,0.4102]
[1724832356965,9.5863,2448.4,2448.1,0.4102]
[1724832357242,9.5863,2448.4,2448.0,0.55]
[1724832357243,9.5863,2448.4,2448.2,0.9602]
[1724832357451,9.5863,2448.4,2448.2,0.4102]
[1724832357619,9.5863,2448.4,2448.3,0.55]
[1724832358411,9.5863,2448.4,2448.2,0.9602]
[1724832358609,0.42772277,2448.6,2448.2,0.9602]
[1724832358959,0.42772277,2448.6,2448.5,4.08413]
[1724832359157,0.42772277,2448.6,2448.5,7.71580434]
[1724832359445,9.6843,2448.8,2448.5,7.71580434]
[1724832359644,9.6843,2448.8,2448.6,3.55]
[1724832360110,9.6843,2448.8,2448.6,0.55]
[1724832360466,4.16565503,2448.7,2448.6,0.55]
[1724832360609,4.08405,2448.6,2447.8,0.4102]
[1724832360812,0.08186503,2448.5,2448.0,0.4102]
[1724832361124,9.6843,2448.8,2448.2,4.08448]
[1724832361125,17.85178,2448.8,2448.2,4.08448]
[1724832361323,4.08405,2448.6,2448.1,0.449521]
[1724832361551,13.76801,2448.8,2448.2,4.16626694]
[1724832361843,4.08433,2448.4,2448.0,0.4102]
[1724832362155,9.6843,2448.8,2448.1,0.49188875]
[1724832362457,9.6843,2448.8,2448.5,4.08402]
[1724832362629,9.6843,2448.8,2448.6,3.55]
[1724832363250,9.2987,2449.1,2448.7,4.08371]
[1724832363437,9.2987,2449.1,2448.8,3.63166229]
[1724832363651,0.08186503,2449.0,2448.8,3.55]
[1724832363808,4.08379,2448.7,2448.6,0.4102]
[1724832364146,4.08422,2448.5,2447.9,4.08499]
[1724832364318,4.16608503,2448.5,2448.0,0.4102]
[1724832364847,4.16608503,2448.5,2447.3,4.08602]
[1724832364848,4.08517,2447.9,2447.3,4.08602]
[1724832365016,8.17039,2447.9,2447.4,0.408602]
[1724832365216,8.17039,2447.9,2446.7,4.08701]
[1724832365217,4.08613,2447.3,2446.7,4.08703]
[1724832365526,4.08613,2447.3,2446.3,6.39677]
[1724832365527,4.08496,2448.1,2447.4,4.08585]
[1724832365859,9.5092,2447.9,2447.4,4.16750966]
[1724832366160,9.5092,2447.9,2447.3,4.08604]
[1724832366340,9.5092,2447.9,2447.5,4.08577]
[1724832366540,9.5092,2448.3,2447.6,0.0817046]
[1724832366738,9.5092,2448.3,2448.1,4.08469]
[1724832366913,9.5092,2448.3,2448.2,3.0]
[1724832367248,4.08368,2448.8,2448.2,3.0]
[1724832367249,9.1978,2448.7,2448.2,3.0]
[1724832367423,9.1978,2448.7,2448.3,4.71603043]
[1724832367627,9.1978,2448.7,2448.4,3.0]
[1724832367824,9.1978,2448.7,2448.5,4.63402]
[1724832368020,9.265,2449.1,2448.6,3.0]
[1724832368225,9.34686503,2449.1,2448.7,0.55]
[1724832368555,9.265,2449.1,2448.9,4.08344]
[1724832368759,9.8901,2449.5,2449.0,3.55]
[1724832368982,9.8901,2449.5,2449.1,4.49331]
[1724832369135,9.8901,2449.5,2449.2,3.55]
[1724832369335,9.8901,2449.5,2449.3,3.0]
[1724832369557,9.8901,2449.5,2449.4,0.55]
[1724832369955,9.8901,2449.5,2449.2,0.55]
[1724832370183,13.97257,2449.5,2449.2,0.55]
[1724832370644,4.16450503,2449.4,2449.2,0.55]
[1724832370849,4.16450503,2449.4,2449.1,0.55]
[1724832370850,4.08289,2449.3,2449.1,0.55]
[1724832371035,0.08186503,2449.4,2449.1,0.55]
[1724832371236,0.08186503,2449.4,2449.0,0.55]
[1724832371460,4.16451503,2449.4,2449.0,3.55]
[1724832371655,0.08186503,2449.4,2449.0,3.55]
[1724832372075,9.8901,2449.5,2449.0,3.63166295]
[1724832372376,9.8901,2449.5,2449.1,4.49331]
[1724832372532,9.8901,2449.5,2449.2,3.55]
[1724832372740,0.42753132,2449.6,2449.2,3.55]
[1724832372940,0.50939635,2449.6,2449.2,3.55]
[1724832373369,0.42753132,2449.6,2449.2,3.55]
[1724832373593,0.42753132,2449.6,2449.2,0.55]
[1724832373786,0.42753132,2449.6,2449.5,4.08246]
[1724832373986,9.9733,2449.8,2449.5,4.08246]
[1724832373987,14.05531,2449.8,2449.5,0.55]
[1724832374200,14.05531,2449.8,2449.6,0.55]
[1724832374344,9.9733,2449.8,2449.6,0.55]
[1724832374657,9.9733,2449.8,2449.5,0.55]
[1724832375169,9.9733,2449.8,2449.5,5.15703544]
[1724832375372,0.42747044,2449.9,2449.8,4.49216]
[1724832375588,0.42747044,2449.9,2449.8,12.2057506]
[1724832375974,0.1216114,2450.3,2449.8,3.9602]
[1724832375975,0.20347643,2450.3,2449.8,3.9602]
[1724832376169,4.08158,2450.1,2449.9,0.55]
[1724832376368,10.0777114,2450.3,2449.9,5.04199]
[1724832376663,10.0777114,2450.3,2450.0,3.0]
[1724832376860,0.08186503,2450.2,2450.1,0.55]
[1724832377059,0.08186503,2450.2,2449.9,0.9602]
[1724832377299,14.1588514,2450.3,2449.9,0.9602]
[1724832377300,0.1216114,2450.3,2450.0,4.08159]
[1724832377499,0.1216114,2450.3,2450.1,3.55]
[1724832378022,0.1216114,2450.3,2450.2,4.08129]
[1724832378173,0.1216114,2450.3,2450.2,11.79419336]
[1724832378482,0.1216114,2450.3,2450.2,3.55]
[1724832378682,0.5489629,2450.3,2450.2,0.55]
[1724832379011,0.1216114,2450.3,2450.2,0.4102]
[1724832379218,0.1216114,2450.3,2450.2,0.9602]
[1724832379370,0.1216114,2450.3,2450.2,3.9602]
[1724832379572,0.1216114,2450.3,2450.2,5.43751]
[1724832379879,0.1216114,2450.3,2450.2,8.43751]
[1724832380317,0.54892615,2450.3,2450.2,8.43751]
[1724832380516,0.54892615,2450.3,2450.2,12.5188]
[1724832380722,0.0336994,2450.3,2450.2,12.5188]
[1724832380931,9.5728,2450.9,2450.2,8.43751]
[1724832381131,4.07783,2452.3,2450.9,4.08003]
[1724832381132,13.49083,2451.5,2450.9,4.08003]
[1724832381300,8.24063503,2451.4,2450.9,4.08003]
[1724832381501,4.16118503,2451.4,2451.0,3.55]
[1724832381802,4.16117503,2451.4,2451.0,3.55]
[1724832382002,9.4116,2451.5,2451.1,4.07979]
[1724832382205,9.4116,2451.5,2451.2,3.55]
[1724832382393,4.16129503,2451.4,2451.2,3.55]
[1724832382596,4.16129503,2451.4,2451.2,0.55]
[1724832382808,4.16129503,2451.4,2451.1,0.9602]
[1724832383017,9.4116,2451.5,2451.1,0.9602]
[1724832383205,9.4116,2451.5,2451.3,4.07934]
[1724832383391,13.49073,2451.5,2451.4,3.55]
[1724832383629,13.11869,2451.0,2450.9,0.4102]
[1724832383999,9.0387,2451.6,2450.9,0.4102]